[Event "98th Caplin Hastings Masters 2024-25"]
[Site "Hastings"]
[Date "2024.12.31"]
[Round "5.37"]
[White "Verbytski, Oleg"]
[Black "Dewangan, Aayush"]
[Result "1-0"]
[ECO "B80"]
[WhiteElo "2033"]
[BlackElo "1878"]
[Annotator "NA RC"]
[PlyCount "95"]
[EventDate "2024.12.23"]
[EventType "swiss"]
[EventCountry "ENG"]
[SourceTitle "playchess.com"]
[Source "ChessBase"]
[SourceQuality "1"]
[TimeControl "5400+30"]

1. e4 {[%emt 0:00:01]} c5 {[%emt 0:00:03]} 2. Nf3 {[%emt 0:00:05]} d6 {[%emt 0:00:03]} 3. d4 {[%emt 0:00:04]} cxd4 {[%emt 0:00:05]} 4. Nxd4 {[%emt 0:00:04]} Nf6 {[%emt 0:00:05]} 5. Nc3 {[%emt 0:00:09]} a6 {[%emt 1:32:44]} 6. Be3 {[%emt 0:00:04]} e6 {[%emt 0:00:00]} 7. f3 {[%emt 0:00:39]} b5 {[%emt 0:00:00]} 8. Qd2 {[%emt 0:00:07]} Nbd7 {[%emt 0:00:00]} 9. g4 {[%emt 0:00:22]} Nb6 {[%emt 0:00:00]} 10. O-O-O {[%emt 0:04:40]} Bb7 {[%emt 0:00:00]} 11. h4 {[%emt 0:01:10]} Rc8 {[%emt 0:00:00]} 12. Kb1 {[%emt 0:03:16]} Nfd7 {[%emt 0:00:00]} 13. g5 {[%emt 0:02:45]} b4 {[%emt 0:00:00]} 14. Nce2 {[%emt 0:00:23]} Nc4 {[%emt 0:00:00]} 15. Qc1 {[%emt 0:00:55]} Nde5 {[%emt 0:00:00]} 16. Ng3 {[%emt 0:03:32]} d5 {[%emt 0:00:00]} 17. f4 {[%emt 0:04:15]} Nxe3 {[%emt 0:00:00]} 18. Qxe3 {[%emt 0:00:06]} Nc4 {[%emt 0:00:00]} 19. Bxc4 {[%emt 0:04:26]} Rxc4 {[%emt 0:00:00]} 20. f5 {[%emt 0:00:09]} Qb6 {[%emt 0:00:00]} 21. Qd2 {[%emt 0:11:55]} Bc5 {[%emt 0:00:00]} 22. Nb3 {[%emt 0:02:52]} Be3 {[%emt 0:00:00]} 23. Qe2 {[%emt 0:02:21]} O-O {[%emt 0:00:00]} 24. h5 {[%emt 0:04:27]} Rfc8 {[%emt 0:00:00]} 25. Na1 {[%emt 0:00:21]} Bxg5 {[%emt 0:00:00]} 26. h6 {[%emt 0:06:23]} Qe3 {[%emt 0:00:00]} 27. Qg4 {[%emt 0:01:18]} e5 {[%emt 0:00:00]} 28. hxg7 {[%emt 0:01:52]} f6 {[%emt 0:00:00]} 29. Qh3 {[%emt 0:14:48]} h6 {[%emt 0:00:00]} 30. exd5 {[%emt 0:00:12]} Rh4 {[%emt 0:00:00]} 31. Qg2 {[%emt 0:00:09]} Rg4 {[%emt 0:00:00]} 32. Rd3 {[%emt 0:00:31]} Qf4 {[%emt 0:00:00]} 33. Rf1 {[%emt 0:12:05]} Qc4 {[%emt 0:00:00]} 34. Rfd1 {[%emt 0:01:11]} Bh4 {[%emt 0:00:00]} 35. Qh3 {[%emt 0:02:23]} Qf4 {[%emt 0:06:22]} 36. Nf1 {[%emt 0:02:31]} e4 {[%emt 0:02:05]} 37. Rd4 {[%emt 0:01:32]} Rxg7 {[%emt 0:04:39]} 38. d6 {[%emt 0:02:17]} Qf2 {[%emt 0:00:22]} 39. d7 {[%emt 0:00:47]} Rd8 {[%emt 0:00:08]} 40. Nb3 {[%emt 0:00:09]} Bg5 {[%emt 0:01:02]} 41. Nc5 {[%emt 0:03:21]} Bc6 {[%emt 0:00:45]} 42. Qh5 {[%emt 0:01:30]} e3 {[%emt 0:01:43]} 43. Ne6 {[%emt 0:00:35]} e2 {[%emt 0:00:43]} 44. Nxd8 {[%emt 0:00:29]} e1=Q {[%emt 0:01:41]} 45. Nxc6 {[%emt 0:01:28]} Qxd4 {[%emt 0:00:00]} 46. Nxd4 {[%emt 0:00:34]} Qe7 {[%emt 0:00:16]} 47. Qe8+ {[%emt 0:00:08]} Kh7 {[%emt 0:00:15]} 48. Qxe7 {[%emt 0:00:04]} 1-0

[Event "98th Caplin Hastings Masters 2024-25"]
[Site "Hastings"]
[Date "2024.12.31"]
[Round "5.38"]
[White "Rayner, Francis"]
[Black "Kim, Taewoo A"]
[Result "1/2-1/2"]
[ECO "A33"]
[WhiteElo "2013"]
[BlackElo "1863"]
[Annotator "NA RC"]
[PlyCount "133"]
[EventDate "2024.12.23"]
[EventType "swiss"]
[EventCountry "ENG"]
[SourceTitle "playchess.com"]
[Source "ChessBase"]
[SourceQuality "1"]
[TimeControl "5400+30"]

1. c4 {[%emt 0:00:26]} c5 {[%emt 0:00:19]} 2. Nf3 {[%emt 0:00:15]} Nc6 {[%emt 0:00:06]} 3. d4 {[%emt 0:01:52]} cxd4 {[%emt 0:00:20]} 4. Nxd4 {[%emt 0:00:07]} Nf6 {[%emt 0:00:25]} 5. Nc3 {[%emt 0:01:30]} e6 {[%emt 0:00:48]} 6. g3 {[%emt 0:01:38]} Bc5 {[%emt 0:08:36]} 7. Nb3 {[%emt 0:02:03]} Be7 {[%emt 0:00:41]} 8. Bg2 {[%emt 0:01:08]} d6 {[%emt 0:08:46]} 9. e4 {[%emt 0:06:03]} a6 {[%emt 0:19:35]} 10. O-O {[%emt 0:02:51]} Qc7 {[%emt 0:00:52]} 11. Qe2 {[%emt 0:07:37]} b6 {[%emt 0:02:29]} 12. h3 {[%emt 0:02:03]} Bb7 {[%emt 0:01:51]} 13. Be3 {[%emt 0:00:45]} O-O {[%emt 0:52:12]} 14. Rac1 {[%emt 0:05:23]} Nd7 {[%emt 0:00:00]} 15. Nd5 {[%emt 0:04:03]} Qd8 {[%emt 0:00:00]} 16. Nxe7+ {[%emt 0:01:01]} Qxe7 {[%emt 0:00:00]} 17. Rfd1 {[%emt 0:02:18]} Rfd8 {[%emt 0:00:00]} 18. Nd2 {[%emt 0:02:40]} Nc5 {[%emt 0:00:00]} 19. f4 {[%emt 0:11:39]} Qc7 {[%emt 0:00:00]} 20. a3 {[%emt 0:01:40]} e5 {[%emt 0:00:00]} 21. f5 {[%emt 0:00:32]} Nd7 {[%emt 0:00:00]} 22. Nb1 {[%emt 0:03:20]} Rac8 {[%emt 0:00:00]} 23. Nc3 {[%emt 0:07:33]} Ne7 {[%emt 0:00:00]} 24. Nd5 {[%emt 0:02:21]} Nxd5 {[%emt 0:00:00]} 25. cxd5 {[%emt 0:00:12]} Qb8 {[%emt 0:00:00]} 26. b4 {[%emt 0:01:49]} Rxc1 {[%emt 0:00:00]} 27. Rxc1 {[%emt 0:00:22]} Rc8 {[%emt 0:00:00]} 28. Qd2 {[%emt 0:02:00]} Rxc1+ {[%emt 0:00:33]} 29. Qxc1 {[%emt 0:03:19]} Qc8 {[%emt 0:00:16]} 30. Qxc8+ {[%emt 0:01:18]} Bxc8 {[%emt 0:00:02]} 31. Bf1 {[%emt 0:00:56]} Kf8 {[%emt 0:00:35]} 32. Kf2 {[%emt 0:00:25]} Ke7 {[%emt 0:00:35]} 33. Kf3 {[%emt 0:00:29]} Kd8 {[%emt 0:02:51]} 34. g4 {[%emt 0:00:45]} f6 {[%emt 0:01:07]} 35. h4 {[%emt 0:00:44]} h6 {[%emt 0:03:42]} 36. g5 {[%emt 0:00:53]} hxg5 {[%emt 0:00:10]} 37. hxg5 {[%emt 0:00:05]} b5 {[%emt 0:01:12]} 38. Kg4 {[%emt 0:01:50]} Ke7 {[%emt 0:00:47]} 39. Kh5 {[%emt 0:00:56]} Nf8 {[%emt 0:00:28]} 40. Bd3 {[%emt 0:01:09]} Bb7 {[%emt 0:00:36]} 41. Bc2 {[%emt 0:02:31]} Bc8 {[%emt 0:00:09]} 42. Bb6 {[%emt 0:00:37]} Bd7 {[%emt 0:00:26]} 43. Bc7 {[%emt 0:01:06]} Be8+ {[%emt 0:00:18]} 44. Kg4 {[%emt 0:00:32]} Nh7 {[%emt 0:00:40]} 45. g6 {[%emt 0:02:02]} Nf8 {[%emt 0:00:12]} 46. Bb6 {[%emt 0:00:35]} Bd7 {[%emt 0:00:13]} 47. Kh5 {[%emt 0:00:47]} Be8 {[%emt 0:00:21]} 48. Be3 {[%emt 0:00:33]} Nd7 {[%emt 0:01:31]} 49. Kg4 {[%emt 0:04:16]} Nf8 {[%emt 0:00:19]} 50. Bd3 {[%emt 0:01:18]} Bd7 {[%emt 0:00:19]} 51. Kf3 {[%emt 0:00:31]} Be8 {[%emt 0:00:27]} 52. Kf2 {[%emt 0:00:54]} Bd7 {[%emt 0:00:21]} 53. Be2 {[%emt 0:00:35]} Be8 {[%emt 0:00:33]} 54. Bh5 {[%emt 0:00:23]} Nd7 {[%emt 0:00:26]} 55. Ke1 {[%emt 0:00:59]} Nb8 {[%emt 0:00:46]} 56. Kd2 {[%emt 0:00:19]} Nd7 {[%emt 0:00:25]} 57. Kc3 {[%emt 0:00:10]} Nb8 {[%emt 0:00:37]} 58. Be2 {[%emt 0:00:25]} Nd7 {[%emt 0:00:57]} 59. a4 {[%emt 0:03:47]} Nf8 {[%emt 0:00:14]} 60. Ba7 {[%emt 0:01:24]} Bd7 {[%emt 0:00:20]} 61. Be3 {[%emt 0:01:17]} Be8 {[%emt 0:00:32]} 62. axb5 {[%emt 0:01:17]} Bxb5 {[%emt 0:00:49]} 63. Bh5 {[%emt 0:02:11]} Nd7 {[%emt 0:00:19]} 64. Bh6 {[%emt 0:00:59]} Kf8 {[%emt 0:00:08]} 65. Be3 {[%emt 0:00:12]} Ke7 {[%emt 0:00:04]} 66. Bh6 {[%emt 0:00:47]} Kf8 {[%emt 0:00:04]} 67. Be3 {[%emt 0:00:05]} 1/2-1/2

[Event "98th Caplin Hastings Masters 2024-25"]
[Site "Hastings"]
[Date "2024.12.31"]
[Round "5.39"]
[White "Swiatkowski, Dominik"]
[Black "Zhu, Yaoyao"]
[Result "0-1"]
[ECO "C96"]
[WhiteElo "1744"]
[BlackElo "1990"]
[Annotator "NA RC"]
[PlyCount "128"]
[EventDate "2024.12.23"]
[EventType "swiss"]
[EventCountry "ENG"]
[SourceTitle "playchess.com"]
[Source "ChessBase"]
[SourceQuality "1"]
[TimeControl "5400+30"]

1. e4 {[%emt 0:00:02]} e5 {[%emt 0:02:24]} 2. Nf3 {[%emt 0:00:03]} Nc6 {[%emt 0:00:14]} 3. Bb5 {[%emt 0:00:06]} a6 {[%emt 0:00:05]} 4. Ba4 {[%emt 0:00:03]} Nf6 {[%emt 0:00:03]} 5. d3 {[%emt 0:00:06]} b5 {[%emt 0:03:05]} 6. Bb3 {[%emt 0:00:04]} Be7 {[%emt 0:00:20]} 7. O-O {[%emt 0:01:14]} O-O {[%emt 0:00:07]} 8. Re1 {[%emt 0:08:42]} d6 {[%emt 0:05:44]} 9. c3 {[%emt 0:03:59]} Na5 {[%emt 0:00:08]} 10. Bc2 {[%emt 1:21:11]} c5 {[%emt 0:00:08]} 11. h3 {[%emt 0:00:00]} Nc6 {[%emt 0:06:18]} 12. a4 {[%emt 0:00:00]} Rb8 {[%emt 0:07:51]} 13. Nbd2 {[%emt 0:00:00]} Re8 {[%emt 0:01:01]} 14. Nf1 {[%emt 0:00:00]} Bf8 {[%emt 0:00:57]} 15. Ng3 {[%emt 0:00:00]} g6 {[%emt 0:02:42]} 16. Qe2 {[%emt 0:00:00]} Bg7 {[%emt 0:06:23]} 17. Be3 {[%emt 0:00:00]} Qe7 {[%emt 0:02:38]} 18. d4 {[%emt 0:00:00]} exd4 {[%emt 0:00:30]} 19. cxd4 {[%emt 0:00:00]} Nb4 {[%emt 0:00:33]} 20. Bb1 {[%emt 0:00:00]} Qc7 {[%emt 0:12:59]} 21. Rc1 {[%emt 0:00:00]} Nd7 {[%emt 0:07:52]} 22. a5 {[%emt 0:00:00]} Bb7 {[%emt 0:01:23]} 23. d5 {[%emt 0:00:00]} Ne5 {[%emt 0:09:57]} 24. Nxe5 {[%emt 0:00:00]} Bxe5 {[%emt 0:00:09]} 25. f4 {[%emt 0:00:00]} Bg7 {[%emt 0:00:12]} 26. Qd2 {[%emt 0:00:00]} Qe7 {[%emt 0:02:01]} 27. Re1 {[%emt 0:00:00]} Qf6 {[%emt 0:10:14]} 28. Re2 {[%emt 0:03:38]} Rbd8 {[%emt 0:02:30]} 29. f5 {[%emt 0:02:30]} Rd7 {[%emt 0:01:36]} 30. Ba2 {[%emt 0:03:00]} Qe5 {[%emt 0:01:04]} 31. Kh2 {[%emt 0:00:25]} h5 {[%emt 0:02:57]} 32. h4 {[%emt 0:00:33]} Kh7 {[%emt 0:01:13]} 33. Bb3 {[%emt 0:00:48]} Qf6 {[%emt 0:00:52]} 34. Bg5 {[%emt 0:00:22]} Qd4 {[%emt 0:11:20]} 35. Rf1 {[%emt 0:00:40]} Qxd2 {[%emt 0:00:00]} 36. Rxd2 {[%emt 0:00:26]} c4 {[%emt 0:00:00]} 37. Bd1 {[%emt 0:00:16]} Be5 {[%emt 0:00:00]} 38. Rdf2 {[%emt 0:00:46]} Kg7 {[%emt 0:00:00]} 39. fxg6 {[%emt 0:00:24]} fxg6 {[%emt 0:00:00]} 40. Bf4 {[%emt 0:00:38]} Nd3 {[%emt 0:00:00]} 41. Bxe5+ {[%emt 0:00:25]} Rxe5 {[%emt 0:00:00]} 42. Rd2 {[%emt 0:00:37]} Nc5 {[%emt 0:00:00]} 43. Bc2 {[%emt 0:00:24]} Rde7 {[%emt 0:00:00]} 44. Rdf2 {[%emt 0:00:23]} b4 {[%emt 0:00:00]} 45. Rf6 {[%emt 0:00:40]} Rd7 {[%emt 0:00:00]} 46. Kh3 {[%emt 0:00:32]} b3 {[%emt 0:00:35]} 47. Bb1 {[%emt 0:00:26]} Na4 {[%emt 0:00:58]} 48. R6f2 {[%emt 0:00:34]} Bc8 {[%emt 0:00:59]} 49. Kh2 {[%emt 0:00:21]} Rc7 {[%emt 0:01:02]} 50. Ne2 {[%emt 0:00:27]} Nxb2 {[%emt 0:00:27]} 51. Nc3 {[%emt 0:00:39]} Nd3 {[%emt 0:00:24]} 52. Rd2 {[%emt 0:00:29]} Nc5 {[%emt 0:00:37]} 53. Rd4 {[%emt 0:00:35]} Nb7 {[%emt 0:00:19]} 54. Na4 {[%emt 0:00:28]} Nxa5 {[%emt 0:00:17]} 55. Rc1 {[%emt 0:00:22]} Bg4 {[%emt 0:00:56]} 56. Rc3 {[%emt 0:00:25]} Re8 {[%emt 0:00:46]} 57. Kg3 {[%emt 0:00:36]} Rb8 {[%emt 0:00:53]} 58. Bd3 {[%emt 0:00:36]} b2 {[%emt 0:00:28]} 59. Bb1 {[%emt 0:00:28]} Rb4 {[%emt 0:00:14]} 60. Nxb2 {[%emt 0:00:36]} Rxb2 {[%emt 0:00:07]} 61. Bc2 {[%emt 0:01:01]} Re7 {[%emt 0:00:56]} 62. Kf4 {[%emt 0:00:00]} Be2 {[%emt 0:00:33]} 63. Ke3 {[%emt 0:00:15]} Bg4 {[%emt 0:00:28]} 64. g3 {[%emt 0:00:33]} Rf7 {[%emt 0:00:23]} 0-1

[Event "98th Caplin Hastings Masters 2024-25"]
[Site "Hastings"]
[Date "2024.12.31"]
[Round "5.40"]
[White "Sciupokas, Arunas"]
[Black "Ruane, Brendan J"]
[Result "1-0"]
[ECO "B08"]
[WhiteElo "1969"]
[BlackElo "1869"]
[Annotator "NA RC"]
[PlyCount "79"]
[EventDate "2024.12.23"]
[EventType "swiss"]
[EventCountry "ENG"]
[SourceTitle "playchess.com"]
[Source "ChessBase"]
[SourceQuality "1"]
[TimeControl "5400+30"]

1. e4 {[%emt 0:00:05]} Nc6 {[%emt 0:00:14]} 2. Nc3 {[%emt 0:00:52]} Nf6 {[%emt 0:01:22]} 3. d4 {[%emt 0:02:06]} d6 {[%emt 0:02:05]} 4. Be2 {[%emt 0:09:07]} g6 {[%emt 0:01:50]} 5. h3 {[%emt 0:02:40]} Bg7 {[%emt 0:00:15]} 6. Nf3 {[%emt 0:00:08]} a6 {[%emt 0:01:02]} 7. O-O {[%emt 0:00:35]} O-O {[%emt 0:00:07]} 8. Re1 {[%emt 0:07:27]} e6 {[%emt 0:11:05]} 9. Bg5 {[%emt 0:02:44]} h6 {[%emt 0:00:56]} 10. Be3 {[%emt 0:00:52]} Kh7 {[%emt 0:00:30]} 11. a3 {[%emt 0:02:15]} b6 {[%emt 0:03:15]} 12. Bd3 {[%emt 0:02:15]} Qe7 {[%emt 0:12:02]} 13. e5 {[%emt 0:12:47]} dxe5 {[%emt 0:02:23]} 14. dxe5 {[%emt 0:05:49]} Nd7 {[%emt 0:00:07]} 15. Bf4 {[%emt 0:03:13]} Bb7 {[%emt 0:03:23]} 16. h4 {[%emt 0:06:16]} Nc5 {[%emt 0:03:48]} 17. Bf1 {[%emt 0:01:12]} Rad8 {[%emt 0:01:03]} 18. Qc1 {[%emt 0:01:23]} Nd4 {[%emt 0:02:58]} 19. Nxd4 {[%emt 0:00:07]} Rxd4 {[%emt 0:00:09]} 20. b4 {[%emt 0:05:24]} Nd7 {[%emt 0:00:58]} 21. Qe3 {[%emt 0:33:43]} c5 {[%emt 0:00:20]} 22. Rad1 {[%emt 0:00:00]} Rxd1 {[%emt 0:02:15]} 23. Rxd1 {[%emt 0:00:00]} cxb4 {[%emt 0:00:41]} 24. axb4 {[%emt 0:00:00]} Rc8 {[%emt 0:10:25]} 25. h5 {[%emt 0:00:00]} Nf8 {[%emt 0:05:50]} 26. b5 {[%emt 0:00:00]} a5 {[%emt 0:00:43]} 27. Na4 {[%emt 0:00:00]} Qb4 {[%emt 0:09:34]} 28. Nxb6 {[%emt 0:00:00]} Rc7 {[%emt 0:07:10]} 29. c4 {[%emt 0:00:00]} a4 {[%emt 0:02:18]} 30. Qd2 {[%emt 0:00:00]} Qb3 {[%emt 0:03:47]} 31. Ra1 {[%emt 0:00:00]} a3 {[%emt 0:01:21]} 32. Qd3 {[%emt 0:00:00]} Qb2 {[%emt 0:00:52]} 33. Rxa3 {[%emt 0:00:00]} Bxe5 {[%emt 0:00:35]} 34. Rb3 {[%emt 0:00:00]} Qa1 {[%emt 0:04:24]} 35. Rb1 {[%emt 0:00:00]} Qxb1 {[%emt 0:00:13]} 36. Qxb1 {[%emt 0:00:00]} Bxf4 {[%emt 0:00:05]} 37. Qb4 {[%emt 0:00:30]} Nd7 {[%emt 0:02:26]} 38. hxg6+ {[%emt 0:00:14]} Kxg6 {[%emt 0:00:11]} 39. Nxd7 {[%emt 0:00:36]} Rxd7 {[%emt 0:00:04]} 40. c5 {[%emt 0:00:41]} 1-0

[Event "98th Caplin Hastings Masters 2024-25"]
[Site "Hastings"]
[Date "2024.12.31"]
[Round "5.41"]
[White "Zhou, Yang-Fan"]
[Black "Laurent-Paoli, Pierre"]
[Result "0-1"]
[ECO "B33"]
[WhiteElo "2424"]
[BlackElo "2559"]
[Annotator "TA"]
[PlyCount "140"]
[EventDate "2024.12.23"]
[EventType "swiss"]
[EventCountry "ENG"]
[SourceTitle "playchess.com"]
[Source "ChessBase"]
[SourceQuality "1"]
[TimeControl "5400+30"]

{[%evp 64,140,257,210,250,235,233,107,364,371,443,440,433,285,285,285,260,-75,-75,-75,-75,-98,-98,-99,29989,-99,-96,-96,-96,-97,-97,-97,-97,-197,-197,-197,-153,-159,-137,-457,-189,-189,0,-443,-137,-534,-515,-1570,-1428,-1375,-1420,-29967,-29969,-29979,-29980,-29978,0,-29959,-29961,-29972,-29974,-29975,-29976,-29968,-29970,-29975,-29976,-29976,-29977,-29978,-29979,-29979,-29980,-29980,-29981,-29981,-29982,-29981,-29979]} 1. e4 {[%emt 0:00:01]} c5 {[%emt 0:08:09]} 2. Nf3 {[%emt 0:00:07]} Nc6 {[%emt 0:00:08]} 3. d4 {[%emt 0:00:03]} cxd4 {[%emt 0:00:06]} 4. Nxd4 {[%emt 0:00:04]} Nf6 {[%emt 0:00:05]} 5. Nc3 {[%emt 0:00:05]} e5 {[%emt 0:00:09]} 6. Ndb5 {[%emt 0:00:05]} d6 {[%emt 0:00:04]} 7. Bg5 {[%emt 0:00:05]} a6 {[%emt 0:00:06]} 8. Na3 {[%emt 0:00:03]} b5 {[%emt 0:00:06]} 9. Nd5 {[%emt 0:00:12]} Be7 {[%emt 0:00:10]} 10. Bxf6 {[%emt 0:00:11]} Bxf6 {[%emt 0:00:10]} 11. c4 {[%emt 0:00:04]} b4 {[%emt 0:00:12]} 12. Nc2 {[%emt 0:00:05]} Rb8 {[%emt 0:04:49]} 13. g3 {[%emt 0:00:18] B33: Sicilian: Pelikan and Sveshnikov Variations.} O-O {[%emt 0:00:12]} 14. b3 {[%emt 0:00:16]} Be6 {[%emt 0:08:06]} 15. Bg2 {[%emt 0:00:42]} Bg5 {[%emt 0:10:22]} 16. O-O {[%emt 0:00:47]} a5 {[%emt 0:00:40]} 17. f4 {[%emt 0:00:39]} exf4 {[%emt 0:01:27]} 18. gxf4 {[%emt 0:00:02]} Bh6 {[%emt 0:03:00]} 19. Kh1 {[%emt 0:00:30]} g6 $146 {[%emt 0:14:39]} ({Predecessor:} 19... Qh4 20. Nce3 g6 21. Qe1 Qxe1 22. Raxe1 Bg7 23. Rd1 a4 24. Rd3 axb3 25. axb3 Bxd5 26. Nxd5 Nd4 27. Ne7+ Kh8 28. Rxd4 Bxd4 29. Nc6 Bc3 30. Nxb8 {½-½ Balla,T (2330)-Samu,G (2331) HUN-chT2 Toth 2122 2021 (5.1)}) 20. Nce3 {[%emt 0:12:28]} Bg7 {[%emt 0:03:39]} 21. Rc1 {[%emt 0:00:04]} Qh4 {[%emt 0:06:09]} 22. c5 {[%emt 0:15:34]} dxc5 {[%emt 0:02:58]} 23. Rxc5 {[%emt 0:00:05]} Nd4 {[%emt 0:02:32]} 24. Rxa5 {[%emt 0:13:42]} Rfc8 {[%emt 0:04:42]} 25. Nc4 {[%emt 0:19:02]} Bg4 {[%emt 0:08:19]} 26. Qe1 {[%emt 0:01:24]} Qd8 {[%emt 0:00:04]} 27. Ra7 {[%emt 0:03:24]} Nc6 {[%emt 0:00:08]} 28. Ra6 {[%emt 0:03:04]} Ra8 {[%emt 0:00:41]} 29. Rxa8 {[%emt 0:11:49]} Rxa8 {[%emt 0:00:04]} 30. Qf2 {[%emt 0:00:51]} Bd4 {[%emt 0:02:30]} 31. Qd2 {[%emt 0:00:55]} Bc3 {[%emt 0:01:23]} 32. Qf2 {[%emt 0:00:41]} Nd4 {[%emt 0:03:07]} 33. e5 {[%emt 0:08:19]} Kg7 {[%emt 0:00:13]} 34. Nd6 {[%emt 0:03:01]} Nf5 {[%emt 0:09:18]} 35. Nf6 {[%emt 0:04:35]} (35. h3 $18) 35... Bd4 $2 {[%emt 0:03:36][%mdl 8192]} (35... Nxd6 $16 36. Nxg4 Nf5) 36. Qd2 $18 {[%emt 0:02:27]} Nxd6 {[%emt 0:02:04]} 37. Qxd4 {[%emt 0:00:26]} (37. Nxg4 Nf5 $14) 37... Be2 {[%emt 0:01:40]} 38. exd6 {[%emt 0:01:47]} Qxf6 {[%emt 0:00:09]} 39. Qxf6+ {[%emt 0:00:20]} (39. Qxb4 Rxa2 40. Re1 Bg4 $17) 39... Kxf6 {[%emt 0:00:03]} 40. Re1 $2 {[%emt 0:01:27]} (40. Rf2 $18 Rxa2 41. Bf1 Bxf1 42. Rxa2) 40... Rxa2 $17 {[%emt 0:00:05]} 41. d7 {[%emt 0:00:21] [#]} Rd2 $1 {[%emt 0:00:15]} (41... Ke7 $2 42. Bf1 $18) 42. Rxe2 {[%emt 0:00:41]} Rd1+ {[%emt 0:00:08]} 43. Bf1 {[%emt 0:00:03]} Rxf1+ {[%emt 0:00:03]} 44. Kg2 {[%emt 0:00:03]} Rd1 {[%emt 0:00:06]} (44... Rxf4 $2 45. d8=Q+ (45. d8=B+ Kg7 $18) 45... Kg7 46. Qe7 $18) 45. Re4 {[%emt 0:00:10]} Rxd7 {[%emt 0:00:35]} 46. Rxb4 {[%emt 0:00:02] [#]} Kf5 $1 {[%emt 0:00:55]} 47. Rc4 {[%emt 0:00:31]} Rd2+ {[%emt 0:01:02]} 48. Kg1 {[%emt 0:00:01]} (48. Kh3 $17) 48... Kg4 $19 {[%emt 0:01:42]} 49. b4 {[%emt 0:02:11]} f5 {[%emt 0:02:07]} 50. Rc7 {[%emt 0:00:40]} Kf3 {[%emt 0:00:30]} 51. h3 $2 {[%emt 0:00:40][%mdl 8192]} (51. Rc3+ $17 Kxf4 52. Rh3) 51... Rd1+ {[%emt 0:00:24]} (51... Kxf4 52. Rc4+ Ke5 53. Rc1 $17) (51... Rg2+ $142 52. Kf1 Rb2) 52. Kh2 $19 {[%emt 0:00:01]} Rd2+ $2 {[%emt 0:00:05]} (52... Kxf4 {Threatens to win with ...Rd2+.} 53. Rc4+ Ke5 54. Rc5+ Rd5) 53. Kg1 $19 {[%emt 0:00:12]} Kg3 $2 {[%emt 0:01:04]} (53... Kxf4 54. Rc4+ Kg5 55. h4+ Kh5 56. Kf1 $11) (53... Rg2+ $19 {is more deadly.} 54. Kf1 Rb2) 54. Kf1 $2 {[%emt 0:00:12][%mdl 8192]} (54. Rc3+ $17 Kxf4 55. Rb3) 54... Rf2+ $19 {[%emt 0:00:15]} (54... Kxh3 55. Ke1 Rd5 56. Rxh7+ Kg3 57. Rh6 $17) 55. Kg1 {[%emt 0:01:22]} (55. Ke1 $142 Rxf4 56. b5 Re4+ (56... Kxh3 $2 57. Ke2 $19) 57. Kf1) 55... Rb2 $19 {[%emt 0:00:32]} (55... Rxf4 56. Rc3+ Kh4 57. Rb3 $11) 56. Kf1 {[%emt 0:00:34]} Rxb4 {[%emt 0:00:27]} (56... Kxh3 57. Rxh7+ Kg3 58. Rh6 $15) 57. Rxh7 {[%emt 0:00:04]} Rxf4+ {[%emt 0:00:05]} 58. Kg1 {[%emt 0:00:32]} Ra4 {[%emt 0:01:04]} 59. Kf1 {[%emt 0:00:05]} Rf4+ $2 {[%emt 0:00:11]} (59... f4 {mates} 60. Rh6 Ra6 (60... Ra1+ $2 61. Ke2 $19) 61. Rh8 f3 62. Re8 Ra1+ (62... Kxh3 $2 63. Kf2 $19) 63. Re1 Rxe1+ 64. Kxe1 f2+ (64... Kxh3 {gets mated.} 65. Kf2 Kg4 66. Kf1 Kf4 67. Kf2 g5 68. Kg1 Ke3 69. Kh2 f2 70. Kg2 Ke2 71. Kg3 f1=Q 72. Kg4 Qf6 73. Kg3 Qf4+ 74. Kg2 Qh4 75. Kg1 Kf3 76. Kf1 Qh1#) (64... Kg2 65. Kd2 f2 66. Kc3 f1=Q 67. Kb4 Kxh3 68. Kc5 g5 69. Kd6 g4 70. Kc5 g3 71. Kd4 g2 72. Ke3 g1=Q+ 73. Ke4 Qc4+ 74. Ke5 Qg7+ 75. Kf5 Qcg4#) 65. Ke2 g5 (65... Kxh3 {is a self mate.} 66. Kxf2 g5 67. Kf1 Kh2 68. Kf2 g4 69. Ke1 Kg1 70. Ke2 g3 71. Kf3 g2 72. Kg3 Kh1 73. Kf4 g1=Q 74. Ke5 Qc5+ 75. Kf6 Qd6+ 76. Kg7 Qe7+ 77. Kh6 Kg2 78. Kg6 Kg3 79. Kf5 Kf3 80. Kg6 Kg4 81. Kh6 Kf5 82. Kh5 Qh7#) (65... f1=Q+ 66. Kxf1 Kxh3 67. Kg1 $19) 66. Ke3 f1=Q (66... f1=B 67. Kd2 Bxh3 68. Ke3 g4 69. Ke4 Kf2 70. Kf5 g3+ 71. Kg6 g2 72. Kf6 g1=Q 73. Ke5 Qg6 74. Kd4 Qb6+ 75. Kc3 Be6 76. Kd3 Qb3+ 77. Kd2 Bf5 78. Kc1 Qc2#) 67. Ke4 Kxh3 (67... Qxh3 68. Kd5 Kf4 69. Kd4 g4 70. Kd5 g3 71. Kd6 g2 72. Kd5 g1=Q 73. Kd6 Qd4+ 74. Ke7 Qh7+ 75. Kf8 Qdh8#) 68. Kd5 g4 69. Kd6 g3 70. Ke7 g2 71. Ke6 g1=Q (71... g1=B 72. Ke5 Qd3 73. Ke6 Kg4 74. Ke7 Bc5+ 75. Kf7 Qh7+ 76. Kf6 Kf4 77. Ke6 Qf5#) 72. Kd7 Qb5+ 73. Kd8 Qg7 74. Kc8 Qe8#) 60. Ke2 $2 {[%emt 0:00:53][%mdl 8192]} (60. Kg1 $11) 60... Re4+ {[%emt 0:00:39]} 61. Kd3 {[%emt 0:01:11]} Re6 {[%emt 0:00:41]} 62. h4 {[%emt 0:00:10]} f4 {[%emt 0:00:14]} 63. h5 {[%emt 0:00:35]} gxh5 {[%emt 0:00:47]} 64. Rxh5 {[%emt 0:00:05]} f3 {[%emt 0:00:05]} 65. Rg5+ {[%emt 0:00:17]} Kf2 {[%emt 0:00:13]} 66. Rg8 {[%emt 0:00:46]} Kf1 {[%emt 0:00:08]} 67. Kd2 {[%emt 0:00:23]} f2 {[%emt 0:00:05]} 68. Rg7 {[%emt 0:00:07]} Rd6+ {[%emt 0:00:10]} 69. Kc3 {[%emt 0:00:35]} Rd5 {[%emt 0:00:17]} 70. Kc4 {[%emt 0:00:32]} Rd1 {[%emt 0:01:10]} 0-1